[Event "*** Titled Tuesday Blitz"]
[Site "Chess.com"]
[Date "2020.04.14"]
[Round "2"]
[White "StoreySniper"]
[Black "Dynamikus"]
[Result "1/2-1/2"]
[WhiteElo "2538"]
[BlackElo "2743"]
[TimeControl "180+1"]
[EndTime "10:19:32 PDT"]
[Termination "Game drawn - insufficient material"]

1. g3 {[%clk 0:02:53.1]} 1... d5 {[%clk 0:02:59.7]} 2. Bg2 {[%clk 0:02:52.7]}
2... e5 {[%clk 0:02:59.8]} 3. c4 {[%clk 0:02:51.5]} 3... dxc4 {[%clk 0:02:58.4]}
4. Qa4+ {[%clk 0:02:49.9]} 4... c6 {[%clk 0:02:48.7]} 5. Qxc4 {[%clk 0:02:49.5]}
5... Nf6 {[%clk 0:02:49.2]} 6. Nf3 {[%clk 0:02:48.7]} 6... Bd6 {[%clk
0:02:49.4]} 7. b3 {[%clk 0:02:46.6]} 7... O-O {[%clk 0:02:47.8]} 8. Bb2 {[%clk
0:02:46.7]} 8... Re8 {[%clk 0:02:47.3]} 9. Ng5 {[%clk 0:02:42.9]} 9... Qe7
{[%clk 0:02:39.6]} 10. Nc3 {[%clk 0:02:41.3]} 10... Nbd7 {[%clk 0:02:34.8]} 11.
Nce4 {[%clk 0:02:40.5]} 11... Nxe4 {[%clk 0:02:29.4]} 12. Nxe4 {[%clk
0:02:37.2]} 12... Bc7 {[%clk 0:02:27.8]} 13. O-O {[%clk 0:02:29.6]} 13... Nb6
{[%clk 0:02:27.7]} 14. Qc2 {[%clk 0:02:29.2]} 14... Bf5 {[%clk 0:02:25.1]} 15.
a4 {[%clk 0:02:27.7]} 15... Nd5 {[%clk 0:02:20.5]} 16. Ba3 {[%clk 0:02:25.6]}
16... Nb4 {[%clk 0:02:20.4]} 17. Bxb4 {[%clk 0:02:24.8]} 17... Qxb4 {[%clk
0:02:16.9]} 18. Nf6+ {[%clk 0:02:24.8]} 18... gxf6 {[%clk 0:02:17.1]} 19. Qxf5
{[%clk 0:02:25.2]} 19... Qxd2 {[%clk 0:02:01.2]} 20. e3 {[%clk 0:02:15.4]} 20...
Kg7 {[%clk 0:01:48.3]} 21. Be4 {[%clk 0:02:12.4]} 21... Rad8 {[%clk 0:01:36.2]}
22. Qxh7+ {[%clk 0:02:09.7]} 22... Kf8 {[%clk 0:01:36.5]} 23. Qf5 {[%clk
0:01:53]} 23... Ke7 {[%clk 0:01:33.4]} 24. Bf3 {[%clk 0:01:43]} 24... Bb6 {[%clk
0:01:33.4]} 25. Rab1 {[%clk 0:01:35.3]} 25... Qd3 {[%clk 0:01:25.3]} 26. Be4
{[%clk 0:01:31.6]} 26... Qe2 {[%clk 0:01:23.3]} 27. Rfe1 {[%clk 0:01:20.9]}
27... Qd2 {[%clk 0:01:18.6]} 28. b4 {[%clk 0:01:19.7]} 28... Rh8 {[%clk
0:01:13.8]} 29. a5 {[%clk 0:01:15.4]} 29... Bc7 {[%clk 0:01:03.7]} 30. a6 {[%clk
0:01:14.2]} 30... bxa6 {[%clk 0:00:58.1]} 31. Bxc6 {[%clk 0:01:13.9]} 31... Bb6
{[%clk 0:00:55.5]} 32. Bf3 {[%clk 0:00:57.9]} 32... Rxh2 {[%clk 0:00:44.8]} 33.
Re2 {[%clk 0:00:55.6]} 33... Rxf2 {[%clk 0:00:19.4]} 34. Rxd2 {[%clk 0:00:48.2]}
34... Rfxd2 {[%clk 0:00:19.8]} 35. Re1 {[%clk 0:00:40.3]} 35... R8d3 {[%clk
0:00:15.7]} 36. Qe4 {[%clk 0:00:34]} 36... Rc3 {[%clk 0:00:13]} 37. Qb7+ {[%clk
0:00:31.5]} 37... Rc7 {[%clk 0:00:12.7]} 38. Qxa6 {[%clk 0:00:30.1]} 38... Bxe3+
{[%clk 0:00:10.9]} 39. Kh1 {[%clk 0:00:26.9]} 39... Bb6 {[%clk 0:00:09.9]} 40.
Re2 {[%clk 0:00:21.9]} 40... Rc1+ {[%clk 0:00:09.2]} 41. Kh2 {[%clk 0:00:20]}
41... Rd8 {[%clk 0:00:04.5]} 42. Qb7+ {[%clk 0:00:19.7]} 42... Rc7 {[%clk
0:00:04.8]} 43. Qe4 {[%clk 0:00:14.9]} 43... Rc1 {[%clk 0:00:05.7]} 44. Bh5
{[%clk 0:00:11.9]} 44... Rh8 {[%clk 0:00:05.3]} 45. g4 {[%clk 0:00:11.8]} 45...
Rd8 {[%clk 0:00:04.9]} 46. Rg2 {[%clk 0:00:09.8]} 46... Rdd1 {[%clk 0:00:04.7]}
47. Rc2 {[%clk 0:00:08.9]} 47... Rh1+ {[%clk 0:00:02.2]} 48. Qxh1 {[%clk
0:00:08.1]} 48... Rxc2+ {[%clk 0:00:02.8]} 49. Kh3 {[%clk 0:00:07.4]} 49... Rc3+
{[%clk 0:00:03.1]} 50. Kg2 {[%clk 0:00:07.2]} 50... Rc2+ {[%clk 0:00:03.3]} 51.
Kf3 {[%clk 0:00:07.7]} 51... Rc3+ {[%clk 0:00:03.6]} 52. Ke4 {[%clk 0:00:08]}
52... Rc4+ {[%clk 0:00:02.7]} 53. Kd5 {[%clk 0:00:07.8]} 53... Rxb4 {[%clk
0:00:02.8]} 54. Kc6 {[%clk 0:00:07.9]} 54... Rc4+ {[%clk 0:00:02.8]} 55. Kb5
{[%clk 0:00:06.9]} 55... Rc7 {[%clk 0:00:03.4]} 56. Ka6 {[%clk 0:00:06.9]} 56...
Rc5 {[%clk 0:00:04.3]} 57. Qb7+ {[%clk 0:00:06.5]} 57... Rc7 {[%clk 0:00:04.8]}
58. Qd5 {[%clk 0:00:06.8]} 58... Rc5 {[%clk 0:00:05.7]} 59. Qxf7+ {[%clk
0:00:06.7]} 59... Kd6 {[%clk 0:00:06.3]} 60. Qf8+ {[%clk 0:00:06.2]} 60... Kd5
{[%clk 0:00:07.2]} 61. Qxf6 {[%clk 0:00:06.4]} 61... Ra5+ {[%clk 0:00:06.6]} 62.
Kb7 {[%clk 0:00:07]} 62... Rc5 {[%clk 0:00:07.5]} 63. Bf7+ {[%clk 0:00:07.1]}
63... Kd4 {[%clk 0:00:08.4]} 64. Qf2+ {[%clk 0:00:07.3]} 64... Kc3 {[%clk
0:00:07.8]} 65. Qe1+ {[%clk 0:00:05.4]} 65... Kd3 {[%clk 0:00:07.7]} 66. Qd1+
{[%clk 0:00:05.8]} 66... Ke3 {[%clk 0:00:07.8]} 67. Qe1+ {[%clk 0:00:06.1]}
67... Kf4 {[%clk 0:00:07.9]} 68. Bb3 {[%clk 0:00:05.2]} 68... Rc7+ {[%clk
0:00:06.6]} 69. Ka6 {[%clk 0:00:04.4]} 69... Kxg4 {[%clk 0:00:07.5]} 70. Qf1
{[%clk 0:00:04.4]} 70... Rc5 {[%clk 0:00:07]} 71. Be6+ {[%clk 0:00:04.9]} 71...
Kg5 {[%clk 0:00:07.2]} 72. Qh3 {[%clk 0:00:05.1]} 72... Kf6 {[%clk 0:00:06.8]}
73. Kb7 {[%clk 0:00:05.4]} 73... Ke7 {[%clk 0:00:07.3]} 74. Qf5 {[%clk
0:00:05.4]} 74... Rc7+ {[%clk 0:00:07.7]} 75. Ka6 {[%clk 0:00:06]} 75... Kd6
{[%clk 0:00:08.4]} 76. Bb3 {[%clk 0:00:05.8]} 76... Kc5 {[%clk 0:00:07.1]} 77.
Qd3 {[%clk 0:00:06]} 77... Kb4 {[%clk 0:00:07.5]} 78. Qb5+ {[%clk 0:00:05.5]}
78... Kc3 {[%clk 0:00:07.4]} 79. Qa4 {[%clk 0:00:06.4]} 79... Rc5 {[%clk
0:00:07.8]} 80. Be6 {[%clk 0:00:05.5]} 80... Ra5+ {[%clk 0:00:07.3]} 81. Qxa5+
{[%clk 0:00:05.1]} 81... Bxa5 {[%clk 0:00:08.2]} 82. Kxa5 {[%clk 0:00:05.5]}
82... e4 {[%clk 0:00:09.1]} 83. Bg4 {[%clk 0:00:05.4]} 83... e3 {[%clk 0:00:10]}
84. Ka6 {[%clk 0:00:05.8]} 84... Kd2 {[%clk 0:00:10.9]} 85. Kxa7 {[%clk
0:00:06.2]} 85... e2 {[%clk 0:00:11.8]} 86. Bxe2 {[%clk 0:00:06.4]} 1/2-1/2

[Event "*** Titled Tuesday Blitz"]
[Site "Chess.com"]
[Date "2020.04.14"]
[Round "2"]
[White "nocnypako"]
[Black "AnnaChessLook"]
[Result "1/2-1/2"]
[WhiteElo "2588"]
[BlackElo "2239"]
[TimeControl "180+1"]
[EndTime "10:19:32 PDT"]
[Termination "Game drawn - insufficient material"]

1. d4 {[%clk 0:03:00.9]} 1... Nf6 {[%clk 0:02:59.6]} 2. c4 {[%clk 0:02:58.9]}
2... c5 {[%clk 0:02:59.7]} 3. d5 {[%clk 0:02:48.8]} 3... b5 {[%clk 0:02:59.6]}
4. Nf3 {[%clk 0:02:49]} 4... bxc4 {[%clk 0:02:58.9]} 5. Nc3 {[%clk 0:02:48.3]}
5... d6 {[%clk 0:02:58.5]} 6. e4 {[%clk 0:02:48.4]} 6... g6 {[%clk 0:02:59.4]}
7. Bxc4 {[%clk 0:02:48.4]} 7... Bg7 {[%clk 0:03:00.3]} 8. O-O {[%clk 0:02:48.6]}
8... O-O {[%clk 0:03:00.8]} 9. Re1 {[%clk 0:02:49.3]} 9... Bg4 {[%clk
0:02:59.3]} 10. Bf4 {[%clk 0:02:49]} 10... Nbd7 {[%clk 0:02:59.3]} 11. h3 {[%clk
0:02:44]} 11... Bxf3 {[%clk 0:02:59.6]} 12. Qxf3 {[%clk 0:02:44.8]} 12... Nb6
{[%clk 0:03:00.3]} 13. Bb5 {[%clk 0:02:40.8]} 13... Nfd7 {[%clk 0:02:59.2]} 14.
Bc6 {[%clk 0:02:40.2]} 14... Rb8 {[%clk 0:02:59.2]} 15. Qe2 {[%clk 0:02:26.6]}
15... Ne5 {[%clk 0:02:47.4]} 16. Bxe5 {[%clk 0:02:05.8]} 16... Bxe5 {[%clk
0:02:41.7]} 17. Qa6 {[%clk 0:02:03.4]} 17... Nc8 {[%clk 0:02:14.2]} 18. Rab1
{[%clk 0:01:39.3]} 18... Nb6 {[%clk 0:02:14]} 19. Rec1 {[%clk 0:01:28.3]} 19...
Nc8 {[%clk 0:02:12.1]} 20. b3 {[%clk 0:01:17.3]} 20... Qb6 {[%clk 0:02:11.2]}
21. Qe2 {[%clk 0:01:14.1]} 21... a5 {[%clk 0:02:04.3]} 22. Nd1 {[%clk
0:01:10.9]} 22... Na7 {[%clk 0:02:03.3]} 23. Ba4 {[%clk 0:01:07.1]} 23... e6
{[%clk 0:02:02.2]} 24. Ne3 {[%clk 0:01:07]} 24... Nb5 {[%clk 0:01:51.6]} 25. Nc4
{[%clk 0:00:59.8]} 25... Nd4 {[%clk 0:01:47.4]} 26. Qg4 {[%clk 0:00:50.8]} 26...
Qa6 {[%clk 0:01:46]} 27. Nxe5 {[%clk 0:00:44.2]} 27... dxe5 {[%clk 0:01:46.3]}
28. dxe6 {[%clk 0:00:38.9]} 28... Ne2+ {[%clk 0:01:31.9]} 29. Kh2 {[%clk
0:00:38.3]} 29... Nxc1 {[%clk 0:01:32.6]} 30. exf7+ {[%clk 0:00:35.5]} 30...
Rxf7 {[%clk 0:01:33.5]} 31. Rxc1 {[%clk 0:00:35.4]} 31... Rxf2 {[%clk
0:01:29.9]} 32. Rxc5 {[%clk 0:00:35.3]} 32... Qf6 {[%clk 0:01:20.2]} 33. Rxa5
{[%clk 0:00:35.3]} 33... Rxa2 {[%clk 0:01:15.1]} 34. Qg3 {[%clk 0:00:21.2]}
34... Rd8 {[%clk 0:00:36.5]} 35. Qxe5 {[%clk 0:00:10.9]} 35... Qxe5+ {[%clk
0:00:35.8]} 36. Rxe5 {[%clk 0:00:11.8]} 36... Rdd2 {[%clk 0:00:36.4]} 37. Rg5
{[%clk 0:00:11.9]} 37... Kf7 {[%clk 0:00:33.8]} 38. Bc6 {[%clk 0:00:11.2]} 38...
h6 {[%clk 0:00:33.5]} 39. Rg3 {[%clk 0:00:11.3]} 39... g5 {[%clk 0:00:32.8]} 40.
Bd5+ {[%clk 0:00:11.6]} 40... Kf6 {[%clk 0:00:32.9]} 41. b4 {[%clk 0:00:10.8]}
41... Rab2 {[%clk 0:00:31.9]} 42. Rg4 {[%clk 0:00:08.2]} 42... Ke5 {[%clk
0:00:31]} 43. h4 {[%clk 0:00:07.4]} 43... gxh4 {[%clk 0:00:31.3]} 44. Kh3 {[%clk
0:00:07.7]} 44... Rxb4 {[%clk 0:00:30.5]} 45. Kxh4 {[%clk 0:00:07.6]} 45... Rb6
{[%clk 0:00:29.3]} 46. Rg8 {[%clk 0:00:06.6]} 46... Rf6 {[%clk 0:00:26.6]} 47.
Kh5 {[%clk 0:00:05.9]} 47... Rdf2 {[%clk 0:00:24.8]} 48. Rg6 {[%clk 0:00:04.3]}
48... Rxg6 {[%clk 0:00:20.4]} 49. Kxg6 {[%clk 0:00:05.2]} 49... Rf6+ {[%clk
0:00:21.3]} 50. Kh5 {[%clk 0:00:05.5]} 50... Kf4 {[%clk 0:00:21.2]} 51. Bg8
{[%clk 0:00:03.1]} 51... Kg3 {[%clk 0:00:19.9]} 52. Bh7 {[%clk 0:00:03.4]} 52...
Kxg2 {[%clk 0:00:19.1]} 53. Bg6 {[%clk 0:00:03.6]} 53... Kf3 {[%clk 0:00:18.8]}
54. Kxh6 {[%clk 0:00:03]} 54... Kf4 {[%clk 0:00:19.3]} 55. Kg7 {[%clk
0:00:03.2]} 55... Ke5 {[%clk 0:00:19.8]} 56. Bf5 {[%clk 0:00:03.2]} 56... Rb6
{[%clk 0:00:19.2]} 57. Kh7 {[%clk 0:00:03.5]} 57... Kf6 {[%clk 0:00:18.9]} 58.
Kh6 {[%clk 0:00:03.9]} 58... Rb2 {[%clk 0:00:19]} 59. Kh5 {[%clk 0:00:04.3]}
59... Rg2 {[%clk 0:00:19.1]} 60. Kh4 {[%clk 0:00:04.2]} 60... Ke5 {[%clk
0:00:19.4]} 61. Kh3 {[%clk 0:00:04.7]} 61... Rg7 {[%clk 0:00:19.8]} 62. Kh4
{[%clk 0:00:05.2]} 62... Kf4 {[%clk 0:00:20.2]} 63. Kh5 {[%clk 0:00:05.6]} 63...
Re7 {[%clk 0:00:20.8]} 64. Kh6 {[%clk 0:00:06]} 64... Ra7 {[%clk 0:00:21.2]} 65.
Kg6 {[%clk 0:00:06.4]} 65... Ra6+ {[%clk 0:00:21.7]} 66. Kf7 {[%clk 0:00:06.8]}
66... Ke5 {[%clk 0:00:22.6]} 67. Kg7 {[%clk 0:00:06.5]} 67... Ra4 {[%clk
0:00:23.5]} 68. Kf7 {[%clk 0:00:06.6]} 68... Rd4 {[%clk 0:00:24]} 69. Kg7 {[%clk
0:00:06.8]} 69... Rd6 {[%clk 0:00:24.5]} 70. Kf7 {[%clk 0:00:07]} 70... Rf6+
{[%clk 0:00:25.1]} 71. Kg7 {[%clk 0:00:07.4]} 71... Rb6 {[%clk 0:00:22.8]} 72.
Kf7 {[%clk 0:00:07.5]} 72... Rd6 {[%clk 0:00:23.7]} 73. Kg7 {[%clk 0:00:07.8]}
73... Rf6 {[%clk 0:00:24.2]} 74. Kh7 {[%clk 0:00:07.9]} 74... Kf4 {[%clk
0:00:24.4]} 75. Kg7 {[%clk 0:00:08.3]} 75... Ke5 {[%clk 0:00:24.8]} 76. Kh7
{[%clk 0:00:08.5]} 76... Rf8 {[%clk 0:00:25.2]} 77. Kg7 {[%clk 0:00:08.7]} 77...
Rd8 {[%clk 0:00:26.1]} 78. Kf7 {[%clk 0:00:09]} 78... Rd4 {[%clk 0:00:26.6]} 79.
Ke7 {[%clk 0:00:09.2]} 79... Rb4 {[%clk 0:00:27.2]} 80. Kd7 {[%clk 0:00:09.4]}
80... Rb7+ {[%clk 0:00:27.7]} 81. Kc6 {[%clk 0:00:09.7]} 81... Rb4 {[%clk
0:00:28.5]} 82. Kc5 {[%clk 0:00:10.1]} 82... Rb1 {[%clk 0:00:29.2]} 83. Kc4
{[%clk 0:00:10.6]} 83... Rc1+ {[%clk 0:00:30]} 84. Kd3 {[%clk 0:00:10.8]} 84...
Rc6 {[%clk 0:00:30.1]} 85. Ke3 {[%clk 0:00:10.9]} 85... Rc3+ {[%clk 0:00:30.5]}
86. Kf2 {[%clk 0:00:11.2]} 86... Kf4 {[%clk 0:00:31]} 87. Ke2 {[%clk 0:00:11.5]}
87... Rc2+ {[%clk 0:00:31.3]} 88. Kd3 {[%clk 0:00:11.7]} 88... Rc1 {[%clk
0:00:30.9]} 89. Kd4 {[%clk 0:00:12.1]} 89... Rd1+ {[%clk 0:00:31.2]} 90. Kc5
{[%clk 0:00:12.4]} 90... Ke5 {[%clk 0:00:32.1]} 91. Kc4 {[%clk 0:00:12.9]} 91...
Rc1+ {[%clk 0:00:32.2]} 92. Kd3 {[%clk 0:00:13.2]} 92... Rg1 {[%clk 0:00:32.6]}
93. Ke3 {[%clk 0:00:13.6]} 93... Rg3+ {[%clk 0:00:33]} 94. Kd2 {[%clk 0:00:14]}
94... Ra3 {[%clk 0:00:33.5]} 95. Ke2 {[%clk 0:00:14.3]} 95... Kd4 {[%clk
0:00:34]} 96. Kf2 {[%clk 0:00:14.6]} 96... Re3 {[%clk 0:00:34.9]} 97. Kg2 {[%clk
0:00:14.7]} 97... Rxe4 {[%clk 0:00:35.7]} 98. Bxe4 {[%clk 0:00:14.1]} 1/2-1/2

[Event "*** Titled Tuesday Blitz"]
[Site "Chess.com"]
[Date "2020.04.14"]
[Round "2"]
[White "Nikolakis2014"]
[Black "KarpovVadim"]
[Result "0-1"]
[WhiteElo "2685"]
[BlackElo "2391"]
[TimeControl "180+1"]
[EndTime "10:19:34 PDT"]
[Termination "KarpovVadim won by resignation"]

1. Nf3 {[%clk 0:03:00.9]} 1... Nf6 {[%clk 0:02:58.4]} 2. c4 {[%clk 0:03:00.3]}
2... e6 {[%clk 0:02:57.5]} 3. g3 {[%clk 0:02:59.7]} 3... d5 {[%clk 0:02:56.8]}
4. d4 {[%clk 0:02:59.2]} 4... Be7 {[%clk 0:02:56.6]} 5. Bg2 {[%clk 0:02:59.1]}
5... O-O {[%clk 0:02:56.6]} 6. O-O {[%clk 0:02:59]} 6... dxc4 {[%clk 0:02:55.9]}
7. Qc2 {[%clk 0:02:59.2]} 7... a6 {[%clk 0:02:56]} 8. a4 {[%clk 0:02:58.5]} 8...
Bd7 {[%clk 0:02:54.8]} 9. Rd1 {[%clk 0:02:58.5]} 9... a5 {[%clk 0:02:49.2]} 10.
Qxc4 {[%clk 0:02:54.6]} 10... Bc6 {[%clk 0:02:45.6]} 11. Nc3 {[%clk 0:02:53.6]}
11... Na6 {[%clk 0:02:43.1]} 12. Bg5 {[%clk 0:02:52.4]} 12... Bxf3 {[%clk
0:02:39.2]} 13. Bxf3 {[%clk 0:02:50.7]} 13... c6 {[%clk 0:02:40.1]} 14. Bxf6
{[%clk 0:02:46.1]} 14... Bxf6 {[%clk 0:02:39.1]} 15. e3 {[%clk 0:02:46.4]} 15...
Nb4 {[%clk 0:02:35.5]} 16. Kg2 {[%clk 0:02:45.7]} 16... g6 {[%clk 0:02:27.7]}
17. Rac1 {[%clk 0:02:44]} 17... Bg7 {[%clk 0:02:27]} 18. h4 {[%clk 0:02:43.7]}
18... h5 {[%clk 0:02:25.5]} 19. Ne4 {[%clk 0:02:42.7]} 19... Qe7 {[%clk
0:02:23.3]} 20. Nc5 {[%clk 0:02:42.1]} 20... Rfd8 {[%clk 0:02:22.3]} 21. Be4
{[%clk 0:02:38.1]} 21... Rac8 {[%clk 0:02:19.8]} 22. Qe2 {[%clk 0:02:24.2]}
22... e5 {[%clk 0:02:04.9]} 23. dxe5 {[%clk 0:02:02.5]} 23... Qxe5 {[%clk
0:02:02.8]} 24. Rxd8+ {[%clk 0:01:59.6]} 24... Rxd8 {[%clk 0:02:01.2]} 25. Bf3
{[%clk 0:01:47.1]} 25... Qxb2 {[%clk 0:01:51.5]} 26. Qxb2 {[%clk 0:01:36.7]}
26... Bxb2 {[%clk 0:01:50.5]} 27. Rb1 {[%clk 0:01:36.6]} 27... Rd2 {[%clk
0:01:46]} 28. Nxb7 {[%clk 0:01:33.9]} 28... Nd3 {[%clk 0:01:40.3]} 29. Rf1
{[%clk 0:01:33.2]} 29... Bc3 {[%clk 0:01:30.3]} 30. Bxc6 {[%clk 0:01:26.8]}
30... Ra2 {[%clk 0:01:29.6]} 31. Bb5 {[%clk 0:01:11.8]} 31... Ne1+ {[%clk
0:01:22.5]} 32. Kh3 {[%clk 0:01:10.5]} 32... Nf3 {[%clk 0:01:20.1]} 33. Nc5
{[%clk 0:01:06.5]} 33... Nd2 {[%clk 0:01:11.7]} 34. Rc1 {[%clk 0:01:04.4]} 34...
Bb4 {[%clk 0:01:11.6]} 35. Nd3 {[%clk 0:01:03.5]} 35... Ne4 {[%clk 0:01:11.1]}
36. Kg2 {[%clk 0:00:58.2]} 36... Bd2 {[%clk 0:01:05.6]} 37. Rc8+ {[%clk
0:00:36.7]} 37... Kg7 {[%clk 0:01:03.6]} 38. Rc7 {[%clk 0:00:36.8]} 38... Bxe3
{[%clk 0:00:56.1]} 39. Rxf7+ {[%clk 0:00:36.5]} 39... Kxf7 {[%clk 0:00:54.6]}
40. Bc4+ {[%clk 0:00:36.6]} 40... Kf6 {[%clk 0:00:53.5]} 41. Bxa2 {[%clk
0:00:37.1]} 41... Bd4 {[%clk 0:00:51.8]} 42. Bc4 {[%clk 0:00:36]} 42... Nc5
{[%clk 0:00:50.1]} 43. Nf4 {[%clk 0:00:29.9]} 43... Be5 {[%clk 0:00:43.5]} 44.
Nd5+ {[%clk 0:00:28.8]} 44... Kg7 {[%clk 0:00:42.6]} 45. Bb5 {[%clk 0:00:28.3]}
45... Bd4 {[%clk 0:00:39.2]} 46. f4 {[%clk 0:00:28.5]} 46... Ne4 {[%clk
0:00:35.9]} 47. Kf3 {[%clk 0:00:28.7]} 47... Nc3 {[%clk 0:00:34.8]} 48. Nc7
{[%clk 0:00:25.4]} 48... Bb6 {[%clk 0:00:31.5]} 49. Na8 {[%clk 0:00:25.3]} 49...
Bd8 {[%clk 0:00:28.7]} 50. Bc6 {[%clk 0:00:25.7]} 50... Kf6 {[%clk 0:00:26.4]}
51. Ke3 {[%clk 0:00:25.8]} 51... Nd1+ {[%clk 0:00:23.8]} 52. Ke2 {[%clk
0:00:25.6]} 52... Nc3+ {[%clk 0:00:21.5]} 53. Kd3 {[%clk 0:00:25.7]} 53... Na2
{[%clk 0:00:20.2]} 54. Kc4 {[%clk 0:00:24.8]} 54... Nb4 {[%clk 0:00:21.1]} 55.
Bf3 {[%clk 0:00:24.7]} 55... Nc2 {[%clk 0:00:19.2]} 56. Kb5 {[%clk 0:00:24.9]}
56... Ne3 {[%clk 0:00:17.6]} 57. Nb6 {[%clk 0:00:23.9]} 57... Nf5 {[%clk
0:00:15.9]} 58. Nd5+ {[%clk 0:00:23.6]} 58... Ke6 {[%clk 0:00:13.2]} 59. Nc3
{[%clk 0:00:14.1]} 59... Nd4+ {[%clk 0:00:11.9]} 60. Kc4 {[%clk 0:00:12.5]}
60... Nxf3 {[%clk 0:00:11.4]} 61. Ne4 {[%clk 0:00:13.1]} 61... Kf5 {[%clk
0:00:10.4]} 62. Nf2 {[%clk 0:00:13.1]} 62... Nxh4 {[%clk 0:00:07.5]} 63. gxh4
{[%clk 0:00:12.5]} 63... Kxf4 {[%clk 0:00:08.1]} 64. Nd3+ {[%clk 0:00:12.3]}
64... Kg4 {[%clk 0:00:07.2]} 65. Ne5+ {[%clk 0:00:12.3]} 65... Kxh4 {[%clk
0:00:06.8]} 66. Nxg6+ {[%clk 0:00:12.3]} 66... Kg5 {[%clk 0:00:06.4]} 67. Ne5
{[%clk 0:00:12.4]} 67... h4 {[%clk 0:00:06]} 68. Nf3+ {[%clk 0:00:12.7]} 68...
Kg4 {[%clk 0:00:04.8]} 69. Nxh4 {[%clk 0:00:12.9]} 69... Kxh4 {[%clk 0:00:04.9]}
70. Kd5 {[%clk 0:00:13.8]} 70... Kg4 {[%clk 0:00:04.9]} 71. Ke6 {[%clk
0:00:14.7]} 71... Kf4 {[%clk 0:00:05.2]} 72. Kd7 {[%clk 0:00:15.6]} 72... Ke4
{[%clk 0:00:04.2]} 73. Kxd8 {[%clk 0:00:16.5]} 73... Kd4 {[%clk 0:00:04.3]} 74.
Ke7 {[%clk 0:00:17.4]} 74... Kc4 {[%clk 0:00:04.5]} 75. Kf6 {[%clk 0:00:18.3]}
75... Kb4 {[%clk 0:00:05.2]} 76. Ke5 {[%clk 0:00:19.2]} 76... Kxa4 {[%clk
0:00:05.8]} 77. Kd4 {[%clk 0:00:20.1]} 77... Kb3 {[%clk 0:00:06.5]} 78. Kd3
{[%clk 0:00:18.2]} 78... a4 {[%clk 0:00:07.4]} 79. Kd2 {[%clk 0:00:18.5]} 79...
a3 {[%clk 0:00:08]} 80. Kd3 {[%clk 0:00:19.4]} 80... a2 {[%clk 0:00:07.2]} 0-1

[Event "*** Titled Tuesday Blitz"]
[Site "Chess.com"]
[Date "2020.04.14"]
[Round "2"]
[White "Abdimalik_Abdisalimov"]
[Black "DraskovicL"]
[Result "1-0"]
[WhiteElo "2806"]
[BlackElo "2554"]
[TimeControl "180+1"]
[EndTime "10:19:47 PDT"]
[Termination "Abdimalik_Abdisalimov won on time"]

1. d4 {[%clk 0:02:59.1]} 1... e6 {[%clk 0:02:57.7]} 2. c4 {[%clk 0:02:59.4]}
2... Nf6 {[%clk 0:02:56.4]} 3. Nf3 {[%clk 0:02:59.1]} 3... a6 {[%clk 0:02:55]}
4. Nc3 {[%clk 0:02:56.9]} 4... d5 {[%clk 0:02:53.6]} 5. cxd5 {[%clk 0:02:54.3]}
5... exd5 {[%clk 0:02:52.8]} 6. Qb3 {[%clk 0:02:55.2]} 6... Bd6 {[%clk
0:02:45.5]} 7. Bg5 {[%clk 0:02:38.6]} 7... c6 {[%clk 0:02:44.3]} 8. e3 {[%clk
0:02:38.6]} 8... h6 {[%clk 0:02:39.1]} 9. Bh4 {[%clk 0:02:38.1]} 9... O-O {[%clk
0:02:38.1]} 10. Bd3 {[%clk 0:02:34.4]} 10... Ra7 {[%clk 0:02:31.7]} 11. O-O
{[%clk 0:02:33.7]} 11... Bg4 {[%clk 0:02:28.4]} 12. Ne5 {[%clk 0:02:33.6]} 12...
Bc8 {[%clk 0:02:14]} 13. Rad1 {[%clk 0:02:25]} 13... Nbd7 {[%clk 0:02:08.9]} 14.
f4 {[%clk 0:02:23.9]} 14... Be7 {[%clk 0:02:07.6]} 15. Bb1 {[%clk 0:02:15.8]}
15... Re8 {[%clk 0:01:54.3]} 16. Qc2 {[%clk 0:02:12.7]} 16... Nf8 {[%clk
0:01:53.4]} 17. Qe2 {[%clk 0:01:46.7]} 17... Ne4 {[%clk 0:01:45.8]} 18. Bxe7
{[%clk 0:01:39.2]} 18... Qxe7 {[%clk 0:01:46.7]} 19. Bxe4 {[%clk 0:01:12.6]}
19... dxe4 {[%clk 0:01:47.6]} 20. f5 {[%clk 0:01:11.1]} 20... f6 {[%clk
0:01:38.3]} 21. Nc4 {[%clk 0:01:09.4]} 21... Qb4 {[%clk 0:01:14.7]} 22. a3
{[%clk 0:01:02.2]} 22... Qb3 {[%clk 0:01:14]} 23. Nd6 {[%clk 0:00:56.4]} 23...
Rd8 {[%clk 0:01:13.7]} 24. Ndxe4 {[%clk 0:00:48.8]} 24... Bd7 {[%clk 0:01:08]}
25. Nc5 {[%clk 0:00:48.1]} 25... Qf7 {[%clk 0:01:05.1]} 26. e4 {[%clk
0:00:48.3]} 26... Bc8 {[%clk 0:01:01.3]} 27. N3a4 {[%clk 0:00:42.7]} 27... b5
{[%clk 0:00:54]} 28. Nc3 {[%clk 0:00:42.4]} 28... Re7 {[%clk 0:00:53.8]} 29. b4
{[%clk 0:00:39.3]} 29... Nd7 {[%clk 0:00:50.4]} 30. Ne6 {[%clk 0:00:37.1]} 30...
Rde8 {[%clk 0:00:50.3]} 31. d5 {[%clk 0:00:36.1]} 31... Ne5 {[%clk 0:00:42.6]}
32. d6 {[%clk 0:00:33.1]} 32... Ra7 {[%clk 0:00:36.5]} 33. Nc5 {[%clk
0:00:31.9]} 33... Rd8 {[%clk 0:00:36.6]} 34. Rd4 {[%clk 0:00:29.4]} 34... a5
{[%clk 0:00:28.3]} 35. Rfd1 {[%clk 0:00:26.8]} 35... axb4 {[%clk 0:00:27.1]} 36.
axb4 {[%clk 0:00:27.7]} 36... Bd7 {[%clk 0:00:26.8]} 37. Qb2 {[%clk 0:00:27.2]}
37... Rda8 {[%clk 0:00:24.5]} 38. h3 {[%clk 0:00:27.1]} 38... Nc4 {[%clk
0:00:18.4]} 39. Qc1 {[%clk 0:00:26.2]} 39... Ne5 {[%clk 0:00:18.5]} 40. Kh2
{[%clk 0:00:25.7]} 40... Qh5 {[%clk 0:00:17.3]} 41. Kg1 {[%clk 0:00:23]} 41...
Qf7 {[%clk 0:00:16.7]} 42. Qf4 {[%clk 0:00:21.1]} 42... Ra3 {[%clk 0:00:16.4]}
43. Ne2 {[%clk 0:00:17.1]} 43... Ra2 {[%clk 0:00:16.2]} 44. R1d2 {[%clk
0:00:16.7]} 44... Ra1+ {[%clk 0:00:16]} 45. Kh2 {[%clk 0:00:16.8]} 45... R1a3
{[%clk 0:00:15.8]} 46. Ng3 {[%clk 0:00:16.6]} 46... Nc4 {[%clk 0:00:14.6]} 47.
Re2 {[%clk 0:00:14.7]} 47... Ne5 {[%clk 0:00:14.9]} 48. Qh4 {[%clk 0:00:13.7]}
48... Ra1 {[%clk 0:00:12]} 49. Nh5 {[%clk 0:00:13.6]} 49... Rb1 {[%clk
0:00:11.6]} 50. Nf4 {[%clk 0:00:13.7]} 50... Raa1 {[%clk 0:00:10.9]} 51. Nfe6
{[%clk 0:00:12.1]} 51... Rh1+ {[%clk 0:00:10.6]} 52. Kg3 {[%clk 0:00:12.4]}
52... Ra3+ {[%clk 0:00:10.7]} 53. Kf2 {[%clk 0:00:10.1]} 53... Rb1 {[%clk
0:00:10]} 54. Re1 {[%clk 0:00:06.9]} 54... Ra2+ {[%clk 0:00:08.9]} 55. Re2
{[%clk 0:00:07]} 55... Ra3 {[%clk 0:00:08.4]} 56. Red2 {[%clk 0:00:07.3]} 56...
Raa1 {[%clk 0:00:08.2]} 57. Qf4 {[%clk 0:00:07.4]} 57... Rf1+ {[%clk 0:00:07.5]}
58. Kg3 {[%clk 0:00:07.9]} 58... Rxf4 {[%clk 0:00:08.4]} 59. Kxf4 {[%clk
0:00:08.8]} 59... Qh5 {[%clk 0:00:08.3]} 60. Kg3 {[%clk 0:00:04.7]} 60... Ra3+
{[%clk 0:00:04.9]} 61. Kf2 {[%clk 0:00:04.7]} 61... Qh4+ {[%clk 0:00:04.5]} 62.
Kg1 {[%clk 0:00:04.4]} 62... Qg3 {[%clk 0:00:02.7]} 63. Kf1 {[%clk 0:00:02.1]}
63... Ra1+ {[%clk 0:00:01.6]} 64. Rd1 {[%clk 0:00:02.3]} 64... Rxd1+ {[%clk
0:00:01.3]} 65. Rxd1 {[%clk 0:00:03.2]} 65... Qc3 {[%clk 0:00:02.2]} 66. Nxd7
{[%clk 0:00:01.3]} 66... Nxd7 {[%clk 0:00:03.1]} 67. Nc5 {[%clk 0:00:01.8]}
67... Qc4+ {[%clk 0:00:03]} 68. Kg1 {[%clk 0:00:01.5]} 1-0